[Event "33rd ECCC Open 2017"]
[Site "Antalya"]
[Date "2017.10.13"]
[Round "6"]
[White "Gantner, Matthias"]
[Black "Germanavicius, Sarunas"]
[Result "0-1"]
[ECO "B90"]
[WhiteElo "2324"]
[BlackElo "2326"]
[Annotator "NA"]
[PlyCount "90"]
[EventType "team-tourn"]
[EventCountry "TUR"]
[SourceTitle "playchess.com"]
[Source "ChessBase"]
[SourceQuality "1"]
[WhiteTeam "White Rose"]
[BlackTeam "MAKABI"]
[TimeControl "40/5400+30:1800+30"]

1. e4 {[%emt 0:00:30]} c5 {[%emt 0:01:00]} 2. Nf3 {[%emt 0:00:30]} d6 {[%emt 0:00:30]} 3. d4 {[%emt 0:00:00]} cxd4 {[%emt 0:00:00]} 4. Nxd4 {[%emt 0:00:00]} Nf6 {[%emt 0:00:00]} 5. Nc3 {[%emt 0:00:30]} a6 {[%emt 0:00:00]} 6. h4 {[%emt 0:00:00] B90: Sicilian Najdorf: Unusual White 6th moves, 6 Be3 Ng4 and 6 Be3 e5} (6. a4 g6 7. Be2 Bg7 8. O-O O-O 9. Be3 Nc6 10. Qd2 Rb8 11. h3 Bd7 12. Rfd1 Qc7 13. Nb3 {½-½ (13) Grischuk,A (2783)-Vachier Lagrave,M (2804) Tbilisi 2017}) 6... e5 {[%emt 0:04:00]} 7. Nb3 {[%emt 0:00:00]} Be6 {[%emt 0:00:00]} 8. f4 {[%emt 0:00:30]} exf4 {[%emt 0:05:00]} 9. Bxf4 {[%emt 0:01:30]} Be7 {[%emt 0:05:30]} 10. Qd2 {[%emt 0:02:30]} Nc6 {[%emt 0:23:30]} 11. O-O-O {[%emt 0:02:30]} Ne5 {[%emt 0:01:30]} 12. h5 $146 {[%emt 0:03:30]} ({Predecessor:} 12. Nd4 O-O 13. Nf5 Bxf5 14. exf5 {1-0 (40) Nihal,S (2483)-Thilakarathne,G (2053) Douglas 2017}) 12... Rc8 {[%emt 0:07:30]} 13. Qe1 {[%emt 0:21:30]} Qc7 {[%emt 0:03:30]} 14. Nd4 {[%emt 0:03:30]} b5 {[%emt 0:07:30]} 15. a3 {[%emt 0:02:30]} O-O {[%emt 0:01:30]} 16. Nf5 {[%emt 0:05:30]} Bxf5 {[%emt 0:02:30]} 17. exf5 {[%emt 0:00:30]} Rfe8 {[%emt 0:00:00]} 18. g4 {[%emt 0:15:30]} Nexg4 {[%emt 0:05:00]} 19. Bd3 {[%emt 0:15:30]} Qb6 {[%emt 0:03:30]} 20. Qd2 {[%emt 0:08:55]} d5 {[%emt 0:01:30]} 21. Rdg1 {[%emt 0:05:31]} b4 {[%emt 0:06:30]} 22. Na4 {[%emt 0:00:46]} Qc6 {[%emt 0:03:34]} 23. b3 {[%emt 0:00:21]} bxa3 {[%emt 0:00:19]} 24. Kb1 {[%emt 0:06:03]} Bc5 {[%emt 0:05:52]} 25. Nxc5 {[%emt 0:01:57]} Qxc5 {[%emt 0:00:07]} 26. Ka2 {[%emt 0:00:12]} a5 {[%emt 0:03:39]} 27. Rg2 {[%emt 0:01:01]} a4 {[%emt 0:00:44]} 28. b4 {[%emt 0:00:37]} Qd4 {[%emt 0:00:28]} 29. Rb1 {[%emt 0:00:23]} h6 {[%emt 0:01:45]} 30. Ba6 {[%emt 0:01:25]} Rxc2+ {[%emt 0:02:53]} 31. Qxc2 {[%emt 0:00:30]} Qxf4 {[%emt 0:00:00]} 32. Re2 {[%emt 0:00:18]} Ne4 {[%emt 0:00:26]} 33. Bd3 {[%emt 0:00:32]} Qe5 {[%emt 0:00:38]} 34. Kxa3 {[%emt 0:00:27]} Qxf5 {[%emt 0:01:00]} 35. b5 {[%emt 0:00:39]} Rc8 {[%emt 0:02:23]} 36. Bxe4 {[%emt 0:00:48]} dxe4 {[%emt 0:00:30]} 37. Qxe4 {[%emt 0:00:20]} Rc3+ {[%emt 0:00:00]} 38. Kxa4 {[%emt 0:00:23]} Qc5 {[%emt 0:00:10]} 39. Qa8+ {[%emt 0:00:40]} Kh7 {[%emt 0:00:14]} 40. Rb4 {[%emt 0:00:00]} Nf6 {[%emt 0:02:48]} 41. Rd2 {[%emt 0:15:51]} Rc1 {[%emt 0:04:30]} 42. Qg2 {[%emt 0:00:40]} Ra1+ {[%emt 0:15:15]} 43. Ra2 {[%emt 0:01:09]} Nd5 {[%emt 0:02:22]} 44. Qe4+ {[%emt 0:03:23]} f5 {[%emt 0:00:08]} 45. Qxf5+ {[%emt 0:01:55]} Kh8 {[%emt 0:00:07]} 0-1

[Event "33rd ECCC Open 2017"]
[Site "Antalya"]
[Date "2017.10.13"]
[Round "6"]
[White "Longson, Alexander"]
[Black "Atakisi, Umut"]
[Result "1/2-1/2"]
[ECO "B51"]
[WhiteElo "2317"]
[BlackElo "2361"]
[Annotator "NA"]
[PlyCount "45"]
[EventType "team-tourn"]
[EventCountry "TUR"]
[SourceTitle "playchess.com"]
[Source "ChessBase"]
[SourceQuality "1"]
[WhiteTeam "3CS Oldham"]
[BlackTeam "Besiktas"]
[TimeControl "40/5400+30:1800+30"]

1. e4 {[%emt 0:00:30]} c5 {[%emt 0:06:00]} 2. Nf3 {[%emt 0:00:30]} Nc6 {[%emt 0:00:30]} 3. Bb5 {[%emt 0:00:00]} d6 {[%emt 0:00:00]} 4. O-O {[%emt 0:00:00]} Bd7 {[%emt 0:00:00]} 5. Re1 {[%emt 0:00:30]} Nf6 {[%emt 0:00:00]} 6. c3 {[%emt 0:00:00]} a6 {[%emt 0:00:00]} 7. Bf1 {[%emt 0:00:00]} Bg4 {[%emt 0:00:30]} 8. h3 {[%emt 0:00:30]} Bxf3 {[%emt 0:00:30]} 9. Qxf3 {[%emt 0:00:30]} e6 {[%emt 0:00:00] B51: Sicilian: Moscow Variation (3 Bb5+) without 3...Bd7} 10. d3 {[%emt 0:00:00]} Be7 {[%emt 0:00:00]} 11. Nd2 {[%emt 0:00:00]} O-O {[%emt 0:02:30]} 12. Qe2 {[%emt 0:00:00]} d5 {[%emt 0:00:00]} 13. g3 {[%emt 0:00:00]} b5 $146 {[%emt 0:01:00]} ({Predecessor:} 13... Qc7 14. Nf3 c4 15. dxc4 Nxe4 16. Bf4 Qb6 17. Be3 {1-0 (68) Predojevic,B (2600)-Cebalo,M (2402) Zadar 2012}) 14. Bg2 {[%emt 0:04:30]} Rc8 {[%emt 0:26:30]} 15. e5 {[%emt 0:10:30]} Nd7 {[%emt 0:01:30]} 16. f4 {[%emt 0:00:00]} b4 {[%emt 0:13:30]} 17. Nf3 {[%emt 0:04:00]} bxc3 {[%emt 0:02:30]} 18. bxc3 {[%emt 0:00:30]} Qa5 {[%emt 0:00:00]} 19. Qc2 {[%emt 0:08:30]} Rb8 {[%emt 0:05:00]} 20. Bd2 $11 {[%emt 0:06:30]} Qa3 {[%emt 0:11:30]} 21. Bc1 {[%emt 0:02:30]} Qa5 {[%emt 0:00:30]} 22. Bd2 {[%emt 0:00:00]} Qa3 {[%emt 0:00:00]} 23. Bc1 {[%emt 0:09:00]} 1/2-1/2

[Event "33rd ECCC Open 2017"]
[Site "Antalya"]
[Date "2017.10.13"]
[Round "6"]
[White "Nikac, Predrag"]
[Black "Makolli, Perparim"]
[Result "1-0"]
[ECO "B42"]
[WhiteElo "2305"]
[BlackElo "2333"]
[Annotator "NA"]
[PlyCount "63"]
[EventType "team-tourn"]
[EventCountry "TUR"]
[SourceTitle "playchess.com"]
[Source "ChessBase"]
[SourceQuality "1"]
[WhiteTeam "Elektroprivreda"]
[BlackTeam "Hasan Pristina"]
[TimeControl "40/5400+30:1800+30"]

1. e4 {[%emt 0:03:30]} c5 {[%emt 0:01:00]} 2. Nf3 {[%emt 0:00:30]} e6 {[%emt 0:01:30]} 3. d4 {[%emt 0:00:30]} cxd4 {[%emt 0:00:30]} 4. Nxd4 {[%emt 0:00:00]} a6 {[%emt 0:00:00]} 5. Bd3 {[%emt 0:00:00]} Nf6 {[%emt 0:00:00]} 6. O-O {[%emt 0:00:30]} Qc7 {[%emt 0:00:30]} 7. Be3 {[%emt 0:00:30]} d5 {[%emt 0:01:30]} 8. Nc3 {[%emt 0:11:30] B42: Sicilian: Kan Variation: 5 Bd3} dxe4 {[%emt 0:15:30]} 9. Nxe4 {[%emt 0:10:30]} Nbd7 {[%emt 0:01:30]} 10. Nxf6+ {[%emt 0:01:30]} Nxf6 {[%emt 0:01:30]} 11. Re1 {[%emt 0:03:30]} Be7 {[%emt 0:01:30]} 12. Qf3 {[%emt 0:01:30]} O-O {[%emt 0:07:30]} 13. Rad1 {[%emt 0:00:30]} Nd5 $146 {[%emt 0:06:30]} ({Predecessor:} 13... Bd6 14. h4 Bh2+ 15. Kh1 {1-0 (44) Ziatdinov,R (2424)-Kuporosov,V (2473) Vladimir 2004}) 14. Bd2 {[%emt 0:07:30]} Bf6 {[%emt 0:01:30]} 15. Qe4 {[%emt 0:00:30]} g6 {[%emt 0:01:30]} 16. c4 {[%emt 0:00:30]} Ne7 {[%emt 0:05:30]} 17. b4 {[%emt 0:09:30]} e5 {[%emt 0:06:30]} 18. Nb3 {[%emt 0:06:30]} Bf5 {[%emt 0:09:30]} 19. Qf3 {[%emt 0:00:00]} Bg7 {[%emt 0:00:30]} 20. Bg5 {[%emt 0:04:00]} Bxd3 {[%emt 0:01:30]} 21. Rxd3 {[%emt 0:00:30]} f6 $11 {[%emt 0:05:30]} 22. Be3 {[%emt 0:10:30]} f5 {[%emt 0:14:14]} 23. Qd1 {[%emt 0:03:30]} Rfd8 {[%emt 0:00:28]} 24. Nc5 {[%emt 0:01:30]} Rxd3 {[%emt 0:03:34]} 25. Qxd3 {[%emt 0:00:30]} Rd8 {[%emt 0:00:56]} 26. Qb3 {[%emt 0:01:30]} Qc8 {[%emt 0:01:07]} 27. Bg5 {[%emt 0:00:30]} Kf7 {[%emt 0:02:20]} 28. Nd3 {[%emt 0:02:30]} Qc7 {[%emt 0:04:06]} 29. c5+ {[%emt 0:03:20]} Ke8 {[%emt 0:01:48]} 30. Nf4 {[%emt 0:00:21]} Nc6 {[%emt 0:03:41]} 31. Qg8+ {[%emt 0:01:33]} Bf8 {[%emt 0:00:00]} 32. Ne6 {[%emt 0:00:12]} 1-0

[Event "33rd ECCC Open 2017"]
[Site "Antalya"]
[Date "2017.10.13"]
[Round "6"]
[White "Reimanis, Ritvars"]
[Black "Roobol, Martin"]
[Result "0-1"]
[ECO "B06"]
[WhiteElo "2294"]
[BlackElo "2289"]
[Annotator "NA"]
[PlyCount "80"]
[EventType "team-tourn"]
[EventCountry "TUR"]
[SourceTitle "playchess.com"]
[Source "ChessBase"]
[SourceQuality "1"]
[WhiteTeam "Riga"]
[BlackTeam "Leiden"]
[TimeControl "40/5400+30:1800+30"]

1. d4 {[%emt 0:00:30]} g6 {[%emt 0:01:00]} 2. e4 {[%emt 0:00:30]} Bg7 {[%emt 0:00:30]} 3. Ne2 {[%emt 0:00:30]} d6 {[%emt 0:00:00]} 4. Be3 {[%emt 0:01:30]} Nc6 {[%emt 0:05:00]} 5. f3 {[%emt 0:00:30]} e5 {[%emt 0:00:30]} 6. d5 {[%emt 0:00:30]} Nce7 {[%emt 0:00:00]} 7. c4 {[%emt 0:00:30]} f5 {[%emt 0:00:00]} 8. Nec3 {[%emt 0:01:30]} Bh6 {[%emt 0:11:30]} 9. Bf2 {[%emt 0:05:30]} Nf6 {[%emt 0:06:30]} 10. Be2 {[%emt 0:02:30]} O-O {[%emt 0:01:30]} 11. c5 {[%emt 0:00:30]} Nh5 {[%emt 0:15:30]} 12. g3 {[%emt 0:03:30]} fxe4 {[%emt 0:03:30]} 13. fxe4 {[%emt 0:00:30]} Nf6 {[%emt 0:04:30]} 14. Na3 {[%emt 0:02:30]} Bh3 {[%emt 0:06:30]} 15. Rg1 {[%emt 0:05:30]} Nd7 {[%emt 0:07:30]} 16. cxd6 {[%emt 0:03:30]} (16. Bf1 $17 {was necessary.} Rxf2 17. Kxf2 Qf8+ 18. Ke1) 16... cxd6 {[%emt 0:00:30]} 17. Bf3 {[%emt 0:06:30]} Rc8 {[%emt 0:07:30]} 18. Qe2 {[%emt 0:06:30]} Qa5 {[%emt 0:02:30]} 19. Nab1 {[%emt 0:01:30]} Rf7 $19 {[%emt 0:13:13]} 20. Be3 {[%emt 0:01:30]} Bxe3 {[%emt 0:03:17]} 21. Qxe3 {[%emt 0:00:30]} Qb4 {[%emt 0:00:30]} 22. a3 {[%emt 0:00:30]} Qd4 {[%emt 0:02:48]} 23. Ke2 {[%emt 0:19:30]} Rxf3 {[%emt 0:00:27]} 24. Qxd4 {[%emt 0:00:30]} exd4 {[%emt 0:00:30]} 25. Kxf3 {[%emt 0:00:00]} Ne5+ {[%emt 0:00:00]} 26. Ke2 {[%emt 0:02:00]} Bg4+ {[%emt 0:00:10]} 27. Kf2 {[%emt 0:00:00]} Rf8+ {[%emt 0:01:07]} 28. Kg2 {[%emt 0:00:00]} Bf3+ {[%emt 0:00:50]} 29. Kh3 {[%emt 0:00:30]} dxc3 {[%emt 0:00:30]} 30. Nxc3 {[%emt 0:00:30]} g5 {[%emt 0:00:30]} 31. g4 {[%emt 0:00:30]} N7g6 {[%emt 0:00:30]} 32. Kg3 {[%emt 0:00:30]} Bxg4 {[%emt 0:00:30]} 33. Rgf1 {[%emt 0:00:30]} Nf4 {[%emt 0:00:30]} 34. h3 {[%emt 0:00:30]} Bd7 {[%emt 0:00:30]} 35. Rac1 {[%emt 0:00:30]} Kg7 {[%emt 0:00:30]} 36. Kh2 {[%emt 0:00:30]} Rf6 {[%emt 0:00:30]} 37. Nd1 {[%emt 0:00:30]} Rh6 {[%emt 0:00:30]} 38. Nf2 {[%emt 0:00:30]} Bxh3 {[%emt 0:00:30]} 39. Rc7+ {[%emt 0:00:30]} Kg6 {[%emt 0:04:07]} 40. Re1 {[%emt 0:00:00]} Nf3+ {[%emt 0:01:01]} 0-1

[Event "33rd ECCC Open 2017"]
[Site "Antalya"]
[Date "2017.10.13"]
[Round "6"]
[White "Kokkila, Tero"]
[Black "Jashari, Ardian"]
[Result "0-1"]
[ECO "B33"]
[WhiteElo "2290"]
[BlackElo "2116"]
[Annotator "NA"]
[PlyCount "83"]
[EventType "team-tourn"]
[EventCountry "TUR"]
[SourceTitle "playchess.com"]
[Source "ChessBase"]
[SourceQuality "1"]
[WhiteTeam "Etela-Vantaan"]
[BlackTeam "Dardania"]
[TimeControl "40/5400+30:1800+30"]

1. e4 {[%emt 0:00:30]} c5 {[%emt 0:01:00]} 2. Nf3 {[%emt 0:00:00]} Nc6 {[%emt 0:00:30]} 3. d4 {[%emt 0:00:00]} cxd4 {[%emt 0:00:00]} 4. Nxd4 {[%emt 0:00:30]} Nf6 {[%emt 0:00:00] LiveBook: 27930 Partien} 5. Nc3 {[%emt 0:00:00]} e5 {[%emt 0:00:30]} 6. Ndb5 {[%emt 0:00:00]} d6 {[%emt 0:00:00]} 7. Bg5 {[%emt 0:00:30]} a6 {[%emt 0:00:00]} 8. Na3 {[%emt 0:00:30]} b5 {[%emt 0:00:30]} 9. Nd5 {[%emt 0:00:30]} Be7 {[%emt 0:00:00]} 10. Bxf6 {[%emt 0:00:00]} Bxf6 {[%emt 0:00:00]} 11. c4 {[%emt 0:00:00]} b4 {[%emt 0:21:30]} 12. Nc2 {[%emt 0:01:30]} a5 {[%emt 0:00:30]} 13. Qf3 {[%emt 0:00:00] B33: Sicilian: Pelikan and Sveshnikov Variations} (13. g3 Bg5 14. h4 Bh6 15. Bh3 Bb7 16. Qh5 Ne7 17. Nf6+ Kf8 18. Rd1 Ng6 19. Nd5 Ne7 20. Nf6 Ng6 {½-½ (49) Saric,I (2662)-Ivanchuk,V (2727) Mali Losinj 2017}) 13... Bg5 {[%emt 0:00:30]} 14. h4 {[%emt 0:01:00]} Bh6 {[%emt 0:00:30]} 15. g4 {[%emt 0:00:30]} Bf4 {[%emt 0:00:30]} 16. Rd1 {[%emt 0:16:30]} O-O {[%emt 0:07:30]} 17. Be2 {[%emt 0:13:30]} Be6 $146 {[%emt 0:06:30]} ({Predecessor:} 17... a4 18. Nxf4 exf4 19. Qxf4 b3 20. axb3 axb3 {1-0 (34) Kovchan,A (2543)-Chernobay,A (2398) Dagomys 2009}) 18. Nxf4 {[%emt 0:05:30]} exf4 {[%emt 0:00:30]} 19. Qxf4 {[%emt 0:00:30]} Ne5 {[%emt 0:00:30]} 20. b3 {[%emt 0:09:30]} Qc7 {[%emt 0:09:30]} 21. Nd4 {[%emt 0:03:30]} d5 {[%emt 0:04:30] [#]} 22. Qg3 $11 {[%emt 0:13:30]} (22. Kf1 $1 $16) 22... dxe4 {[%emt 0:05:30]} 23. h5 {[%emt 0:02:30]} Rad8 {[%emt 0:06:30]} 24. h6 {[%emt 0:07:30]} Nd3+ {[%emt 0:08:30]} 25. Rxd3 {[%emt 0:01:30]} Qxg3 {[%emt 0:00:30]} 26. Rxg3 {[%emt 0:00:30]} Rxd4 {[%emt 0:00:00]} 27. hxg7 {[%emt 0:00:30]} Kxg7 {[%emt 0:00:00]} 28. Rh5 {[%emt 0:00:30]} Ra8 {[%emt 0:01:30]} 29. Re3 {[%emt 0:14:43]} a4 {[%emt 0:00:30]} 30. f4 {[%emt 0:00:09]} exf3 {[%emt 0:02:30]} 31. Bxf3 {[%emt 0:00:08]} axb3 {[%emt 0:00:30]} 32. Bxa8 {[%emt 0:03:19]} bxa2 {[%emt 0:00:30]} 33. Rg5+ {[%emt 0:01:29]} Kf8 {[%emt 0:01:30]} 34. Ra5 {[%emt 0:00:13]} Bxc4 {[%emt 0:00:30]} 35. Bc6 {[%emt 0:05:05]} Rxg4 {[%emt 0:04:30]} 36. Kd2 {[%emt 0:00:53]} Rg1 {[%emt 0:00:31]} 37. Re4 {[%emt 0:00:53]} b3 {[%emt 0:02:39]} 38. Rxc4 {[%emt 0:00:37]} b2 {[%emt 0:00:24]} 39. Be4 {[%emt 0:00:30]} b1=Q {[%emt 0:00:19]} 40. Rc8+ {[%emt 0:00:00]} Kg7 {[%emt 0:30:40]} 41. Bxb1 {[%emt 0:01:31]} axb1=Q {[%emt 0:00:00]} 42. Rd8 {[%emt 0:00:30]} 0-1

[Event "33rd ECCC Open 2017"]
[Site "Antalya"]
[Date "2017.10.13"]
[Round "6"]
[White "Apaydin, Fethi"]
[Black "Walton, Alan J"]
[Result "1-0"]
[ECO "C00"]
[WhiteElo "2262"]
[BlackElo "2207"]
[Annotator "NA"]
[PlyCount "59"]
[EventType "team-tourn"]
[EventCountry "TUR"]
[SourceTitle "playchess.com"]
[Source "ChessBase"]
[SourceQuality "1"]
[WhiteTeam "Besiktas"]
[BlackTeam "3CS Oldham"]
[TimeControl "40/5400+30:1800+30"]

1. e4 {[%emt 0:02:30]} e6 {[%emt 0:01:00]} 2. d3 {[%emt 0:00:30]} d5 {[%emt 0:00:30]} 3. Nd2 {[%emt 0:00:30]} Nf6 {[%emt 0:00:30]} 4. e5 {[%emt 0:00:00]} Nfd7 {[%emt 0:00:00]} 5. f4 {[%emt 0:00:00]} c5 {[%emt 0:00:00]} 6. g3 {[%emt 0:00:30] C00: French: Unusual White 2nd moves} Nc6 {[%emt 0:00:00]} 7. Ndf3 {[%emt 0:00:00]} b5 {[%emt 0:00:00]} 8. Bh3 {[%emt 0:06:00]} b4 {[%emt 0:05:30]} 9. Ne2 {[%emt 0:02:30]} a5 $146 {[%emt 0:00:30]} ({Predecessor:} 9... Qb6 10. O-O Be7 11. g4 h5 12. g5 g6 13. Be3 a5 14. c4 d4 15. Bc1 Bf8 {½-½ (39) Degraeve,J (2515)-Santo Roman,M (2385) Auxerre 1996}) 10. O-O {[%emt 0:01:30]} g6 {[%emt 0:04:30]} 11. g4 {[%emt 0:03:30]} Be7 {[%emt 0:04:30]} 12. Ng3 {[%emt 0:05:30]} Ba6 {[%emt 0:07:30]} 13. Rf2 {[%emt 0:15:30]} Qb6 {[%emt 0:04:30]} 14. c3 {[%emt 0:03:30]} O-O-O {[%emt 0:01:30]} 15. d4 {[%emt 0:06:30]} Rdg8 {[%emt 0:08:30]} 16. Be3 {[%emt 0:13:30]} c4 {[%emt 0:06:30]} 17. Kh1 {[%emt 0:03:30]} Bb7 {[%emt 0:04:30]} 18. Rc1 {[%emt 0:04:30]} h5 {[%emt 0:05:30]} 19. gxh5 {[%emt 0:02:30]} g5 $18 {[%emt 0:00:30]} ({Black should try} 19... Kb8 $14) 20. Nxg5 {[%emt 0:13:53]} Bxg5 {[%emt 0:00:30]} 21. fxg5 {[%emt 0:00:05]} Ncxe5 {[%emt 0:00:00]} 22. cxb4 {[%emt 0:01:14]} axb4 {[%emt 0:01:00]} 23. Bg2 {[%emt 0:02:38]} f5 {[%emt 0:00:30]} 24. h3 {[%emt 0:03:08]} Bc6 {[%emt 0:02:30]} 25. Rd2 {[%emt 0:02:37]} Kb7 {[%emt 0:01:30]} 26. Bf4 {[%emt 0:00:44]} Nd3 {[%emt 0:03:30]} 27. Rxd3 {[%emt 0:00:30]} cxd3 {[%emt 0:00:00]} 28. Qxd3 {[%emt 0:00:00]} Rc8 {[%emt 0:00:00]} 29. Re1 {[%emt 0:00:00]} Bb5 {[%emt 0:01:30]} 30. Qe3 {[%emt 0:00:00]} 1-0

[Event "33rd ECCC Open 2017"]
[Site "Antalya"]
[Date "2017.10.13"]
[Round "6"]
[White "Aleksic, Nenad C"]
[Black "Fejzullahu, Afrim"]
[Result "1/2-1/2"]
[ECO "D02"]
[WhiteElo "2261"]
[BlackElo "2272"]
[Annotator "NA"]
[PlyCount "61"]
[EventType "team-tourn"]
[EventCountry "TUR"]
[SourceTitle "playchess.com"]
[Source "ChessBase"]
[SourceQuality "1"]
[WhiteTeam "Elektroprivreda"]
[BlackTeam "Hasan Pristina"]
[TimeControl "40/5400+30:1800+30"]

1. d4 {[%emt 0:00:30]} Nf6 {[%emt 0:01:00]} 2. Nf3 {[%emt 0:00:30]} g6 {[%emt 0:00:30]} 3. g3 {[%emt 0:00:00]} Bg7 {[%emt 0:00:30]} 4. Bg2 {[%emt 0:00:00]} O-O {[%emt 0:00:00]} 5. O-O {[%emt 0:00:30]} d5 {[%emt 0:03:00]} 6. c3 {[%emt 0:04:30]} c6 {[%emt 0:01:30]} 7. Nbd2 {[%emt 0:02:30]} Bg4 {[%emt 0:07:30] D02: 1 d4 d5 2 Nf3 sidelines, including 2...Nf6 3 g3 and 2...Nf6 3 Bf4} (7... Bf5 8. Nh4 Bg4 9. Qe1 Nbd7 10. h3 Be6 11. f4 c5 12. g4 Nb6 13. f5 Bd7 14. Ndf3 cxd4 15. cxd4 Ne4 16. Ne5 {½-½ (36) Artemiev,V (2696)-Mamedyarov,S (2791) Sochi 2017}) 8. Re1 {[%emt 0:03:30]} Nbd7 {[%emt 0:02:30]} 9. h3 {[%emt 0:03:30]} Bxf3 {[%emt 0:00:30]} 10. exf3 $146 {[%emt 0:02:30]} ({Predecessor:} 10. Nxf3 Re8 11. Bf4 Nh5 12. Qd2 Nxf4 13. Qxf4 e5 14. dxe5 Nxe5 15. Nxe5 Bxe5 16. Qf3 f5 17. e3 Qc7 18. Rad1 Rad8 19. Rd2 Bg7 20. Red1 Qe7 21. Rd3 Kh8 22. R1d2 {½-½ (22) Faessler,M (1800)-Baumann,C (1800) Biel 1981}) 10... Re8 {[%emt 0:02:30]} 11. f4 {[%emt 0:00:30]} c5 {[%emt 0:01:30]} 12. Nb3 {[%emt 0:00:30]} cxd4 {[%emt 0:06:30]} 13. Nxd4 {[%emt 0:00:30]} e6 {[%emt 0:02:30]} 14. Be3 {[%emt 0:03:30]} a6 {[%emt 0:01:30]} 15. Nf3 {[%emt 0:06:30]} Rc8 {[%emt 0:03:30]} 16. Bd4 {[%emt 0:02:30]} Nb8 {[%emt 0:04:30]} 17. Ne5 {[%emt 0:01:30]} Nfd7 {[%emt 0:02:30]} 18. Nxd7 {[%emt 0:09:30]} Qxd7 {[%emt 0:03:30]} 19. Bxg7 {[%emt 0:00:30]} Kxg7 {[%emt 0:00:30]} 20. Qd4+ {[%emt 0:00:00]} Kg8 {[%emt 0:00:30]} 21. Rad1 {[%emt 0:00:00]} Qb5 {[%emt 0:02:30]} 22. Rd2 {[%emt 0:04:30]} Nc6 {[%emt 0:02:30]} 23. Qf6 $11 {[%emt 0:00:30]} Qc5 {[%emt 0:11:30]} 24. f5 {[%emt 0:07:30]} gxf5 {[%emt 0:02:30]} 25. Qg5+ {[%emt 0:00:30]} Kh8 {[%emt 0:02:30]} 26. Qf6+ {[%emt 0:00:30]} Kg8 {[%emt 0:00:00]} 27. Qg5+ {[%emt 0:00:00]} Kh8 {[%emt 0:00:00]} 28. Qf6+ {[%emt 0:00:00]} Kg8 {[%emt 0:00:30]} 29. Qg5+ {[%emt 0:01:30]} Kh8 {[%emt 0:00:30]} 30. Qf6+ {[%emt 0:00:00]} Kg8 {[%emt 0:00:30]} 31. Qg5+ {[%emt 0:00:00]} 1/2-1/2

[Event "33rd ECCC Open 2017"]
[Site "Antalya"]
[Date "2017.10.13"]
[Round "6"]
[White "Bednarich, Jan"]
[Black "Aslan, Lina"]
[Result "1-0"]
[ECO "D06"]
[WhiteElo "2224"]
[BlackElo "1535"]
[Annotator "NA"]
[PlyCount "133"]
[EventType "team-tourn"]
[EventCountry "TUR"]
[SourceTitle "playchess.com"]
[Source "ChessBase"]
[SourceQuality "1"]
[WhiteTeam "Bonnevoie"]
[BlackTeam "Hatay"]
[TimeControl "40/5400+30:1800+30"]

1. Nf3 {[%emt 0:00:30]} d5 {[%emt 0:01:00]} 2. c4 {[%emt 0:00:30]} Nf6 {[%emt 0:00:30]} 3. cxd5 {[%emt 0:00:30]} Nxd5 {[%emt 0:01:30]} 4. e4 {[%emt 0:01:30]} Nf6 {[%emt 0:02:30]} 5. Nc3 {[%emt 0:00:30]} e6 {[%emt 0:01:30]} 6. d4 {[%emt 0:00:30]} Be7 {[%emt 0:03:30]} 7. Bf4 {[%emt 0:02:30] D06: Queen's Gambit: Symmetrical and Baltic Defences} (7. Bc4 O-O 8. O-O Bd7 9. Qe2 Nc6 10. Bf4 Re8 11. Rfd1 Bf8 12. Bg5 h6 13. Bh4 e5 14. Nd5 Nxd4 15. Nxd4 exd4 {1-0 (22) Nguyen Huynh Minh,H (2476)-Tran,Q (2270) Da Lat 2014}) 7... a6 {[%emt 0:03:30]} 8. Rc1 {[%emt 0:01:30]} O-O {[%emt 0:00:30]} 9. Bd3 {[%emt 0:02:30]} c5 $146 {[%emt 0:05:30]} ({Predecessor:} 9... Nc6 10. Bb1 Bb4 11. e5 Nd5 12. Qd3 g6 13. Bh6 Re8 14. h4 Bf8 15. Bxf8 Rxf8 {1-0 (26) De Souza Monteiro,M (2029)-Pereira Fo,H (1828) Belem 2013}) 10. dxc5 {[%emt 0:01:30]} Bxc5 {[%emt 0:01:30]} 11. O-O {[%emt 0:00:30]} Be7 {[%emt 0:08:30]} 12. Qc2 {[%emt 0:02:30]} Nc6 {[%emt 0:05:30]} 13. a3 {[%emt 0:00:30]} Qa5 {[%emt 0:02:30]} 14. Bd2 {[%emt 0:15:30]} ({White should try} 14. e5 $16 Nh5 15. Bd2 (15. Bxh7+ Kh8 $16)) 14... Qc7 {[%emt 0:02:30]} 15. h3 {[%emt 0:01:30]} Bd7 {[%emt 0:12:30]} 16. Rfe1 {[%emt 0:02:30]} Bd6 {[%emt 0:04:30]} 17. Qd1 {[%emt 0:05:30]} Be5 {[%emt 0:11:30]} 18. Nxe5 {[%emt 0:03:30]} Qxe5 {[%emt 0:01:30]} 19. Bb1 {[%emt 0:04:30]} Rac8 {[%emt 0:03:30]} 20. Be3 {[%emt 0:04:30]} Qa5 {[%emt 0:03:30]} 21. f4 $16 {[%emt 0:02:30]} Ne7 {[%emt 0:06:11]} 22. Qd2 {[%emt 0:06:30]} Qh5 {[%emt 0:05:18]} 23. Qf2 {[%emt 0:03:30]} Rfd8 {[%emt 0:03:05]} 24. Bb6 {[%emt 0:01:30]} Re8 {[%emt 0:00:25]} 25. Re3 {[%emt 0:03:30]} Ng6 {[%emt 0:02:19]} 26. Rf1 {[%emt 0:04:30]} Bb5 {[%emt 0:01:35]} 27. Rfe1 {[%emt 0:09:48]} Nd7 {[%emt 0:03:03]} 28. Bd4 {[%emt 0:03:07]} e5 {[%emt 0:03:13]} 29. fxe5 {[%emt 0:01:29]} Ndxe5 {[%emt 0:00:12]} 30. Nd5 {[%emt 0:00:22]} Rc4 {[%emt 0:01:07]} 31. Bc3 {[%emt 0:00:22]} Bc6 {[%emt 0:01:25]} 32. Ba2 {[%emt 0:01:14]} Rc5 {[%emt 0:00:33]} 33. Bd4 {[%emt 0:01:01]} Ra5 {[%emt 0:00:25]} 34. Bc3 {[%emt 0:03:21]} Rc5 {[%emt 0:00:22]} 35. Rg3 {[%emt 0:01:46]} Bd7 {[%emt 0:00:23]} 36. Qxc5 {[%emt 0:01:10]} Qh4 {[%emt 0:00:08]} 37. Qf2 {[%emt 0:00:14]} Bb5 {[%emt 0:00:33]} 38. Bb1 {[%emt 0:00:51]} Qd8 {[%emt 0:00:25]} 39. Bc2 {[%emt 0:01:26]} f6 {[%emt 0:00:41]} 40. Rd1 {[%emt 0:01:25]} Qc8 {[%emt 0:00:37]} 41. Re3 {[%emt 0:00:54]} Nc4 {[%emt 0:01:30]} 42. Ree1 {[%emt 0:00:30]} Bc6 {[%emt 0:01:30]} 43. Bb3 {[%emt 0:01:30]} b5 {[%emt 0:00:30]} 44. Qc5 {[%emt 0:06:30]} Kh8 {[%emt 0:00:30]} 45. Nb4 {[%emt 0:00:00]} Nce5 {[%emt 0:00:30]} 46. Nxc6 {[%emt 0:02:00]} Nxc6 {[%emt 0:01:30]} 47. Bd5 {[%emt 0:01:30]} Nce5 {[%emt 0:00:00]} 48. Qxc8 {[%emt 0:00:30]} Rxc8 {[%emt 0:00:00]} 49. Be6 {[%emt 0:00:00]} Re8 {[%emt 0:00:30]} 50. Bf5 {[%emt 0:00:00]} Nc4 {[%emt 0:00:30]} 51. Rd7 {[%emt 0:01:30]} Nge5 {[%emt 0:00:30]} 52. Rd5 {[%emt 0:00:30]} g6 {[%emt 0:00:30]} 53. Bd7 {[%emt 0:01:30]} Rd8 {[%emt 0:00:30]} 54. Bxe5 {[%emt 0:01:30]} Nxe5 {[%emt 0:00:30]} 55. Red1 {[%emt 0:00:00]} Nc4 {[%emt 0:00:00]} 56. Bg4 {[%emt 0:00:00]} Re8 {[%emt 0:00:00]} 57. Rd8 {[%emt 0:00:30]} Rxd8 {[%emt 0:00:30]} 58. Rxd8+ {[%emt 0:00:30]} Kg7 {[%emt 0:00:30]} 59. Ra8 {[%emt 0:00:00]} Nxb2 {[%emt 0:00:00]} 60. Rxa6 {[%emt 0:01:00]} Nc4 {[%emt 0:00:00]} 61. Be2 {[%emt 0:00:30]} Nd2 {[%emt 0:00:30]} 62. Bxb5 {[%emt 0:00:00]} Nxe4 {[%emt 0:00:00]} 63. Bf1 {[%emt 0:00:00]} Nc5 {[%emt 0:00:00]} 64. Rc6 {[%emt 0:01:30]} Na4 {[%emt 0:00:30]} 65. Bb5 {[%emt 0:00:30]} Nb2 {[%emt 0:00:30]} 66. a4 {[%emt 0:00:30]} Nxa4 {[%emt 0:00:00]} 67. Bxa4 {[%emt 0:00:00]} 1-0